fUST/lending_fUST_20240325
["ID","MTS","AMOUNT","RATE_DAILY","PERIOD"]
[320336505,1711307459569,-500.0,0.00060273,14]
[320336506,1711307459579,-500.0,0.00060273,120]
[320336507,1711307459590,-500.0,0.00060273,120]
[320336508,1711307459600,-500.0,0.00060273,120]
[320336509,1711307459609,-500.0,0.00060273,120]
[320336510,1711307459619,-500.0,0.00060273,120]
[320336511,1711307459628,-500.0,0.00060273,120]
[320336512,1711307459637,-500.0,0.00060273,120]
[320336513,1711307459647,-500.0,0.00060273,120]
[320336514,1711307459657,-500.0,0.00060273,120]
[320336515,1711307459666,-500.0,0.00060273,120]
[320336516,1711307459677,-500.0,0.00060273,120]
[320336517,1711307459687,-504.71295691,0.00060273,120]
[320336518,1711307459696,-500.0,0.00060273,120]
[320336519,1711307459706,-500.0,0.00060273,120]
[320336520,1711307459716,-500.0,0.00060273,120]
[320336521,1711307459725,-500.0,0.00060273,120]
[320336522,1711307459734,-500.0,0.00060273,120]
[320336523,1711307459743,-395.59560409,0.00060273,120]
[320336524,1711307459752,-500.0,0.00060273,120]
[320336525,1711307459762,-500.0,0.00060273,60]
[320336526,1711307459771,-500.0,0.00060273,120]
[320336527,1711307459780,-500.0,0.00060273,120]
[320336528,1711307459789,-500.0,0.00060273,120]
[320336529,1711307459798,-500.0,0.00060273,120]
[320336530,1711307459806,-1073.01,0.00060273,120]
[320336531,1711307459816,-500.0,0.00060273,120]
[320336532,1711307459825,-500.0,0.00060273,120]
[320336533,1711307459834,-500.0,0.00060273,120]
[320336534,1711307459843,-500.0,0.00060273,120]
[320336535,1711307459852,-500.0,0.00060273,120]
[320336536,1711307459862,-500.0,0.00060273,120]
[320336537,1711307459872,-500.0,0.00060273,120]
[320336538,1711307459882,-1073.67,0.00060273,120]
[320336539,1711307459892,-500.0,0.00060273,120]
[320336540,1711307459903,-500.0,0.00060273,120]
[320336541,1711307459912,-462.57986475,0.00060273,120]
[320336542,1711307459922,-500.0,0.00060273,120]
[320336543,1711307459931,-500.0,0.00060273,120]
[320336544,1711307459939,-500.0,0.00060273,120]
[320336545,1711307459950,-500.0,0.00060273,120]
[320336546,1711307459960,-500.0,0.00060273,120]
[320336547,1711307459969,-250.0,0.00060273,120]
[320336548,1711307459979,-500.0,0.00060273,120]
[320336549,1711307459988,-500.0,0.00060273,120]
[320336550,1711307459997,-500.0,0.00060273,120]
[320336551,1711307460006,-500.0,0.00060273,120]
[320336552,1711307460015,-500.0,0.00060273,120]
[320336553,1711307460026,-500.0,0.00060273,120]
[320336554,1711307460035,-500.0,0.00060273,120]
[320336555,1711307460044,-500.0,0.00060273,120]
[320336556,1711307460054,-500.0,0.00060273,120]
[320336557,1711307460063,-500.0,0.00060273,120]
[320336558,1711307460073,-500.0,0.00060273,120]
[320336559,1711307460083,-500.0,0.00060273,120]
[320336560,1711307460095,-500.0,0.00060273,120]
[320336561,1711307460104,-500.0,0.00060273,120]
[320336562,1711307460113,-500.0,0.00060273,120]
[320336563,1711307460122,-500.0,0.00060273,120]
[320336564,1711307460132,-500.0,0.00060273,120]
[320336565,1711307460141,-500.0,0.00060273,120]
[320336566,1711307460151,-500.0,0.00060273,120]
[320336567,1711307460160,-5000.0,0.00060273,120]
[320336568,1711307460171,-500.0,0.00060273,120]
[320336569,1711307460181,-500.0,0.00060273,120]
[320336570,1711307460191,-500.0,0.00060273,120]
[320336571,1711307460199,-500.0,0.00060273,120]
[320336572,1711307460209,-500.0,0.00060273,120]
[320336573,1711307460218,-500.0,0.00060273,120]
[320336574,1711307460227,-500.0,0.00060273,120]
[320336575,1711307460236,-902.9,0.00060273,120]
[320336576,1711307460245,-500.0,0.00060273,120]
[320336577,1711307460254,-393.85553291,0.00060273,120]
[320336578,1711307460264,-500.0,0.00060273,120]
[320336579,1711307460273,-500.0,0.00060273,120]
[320336580,1711307460283,-500.0,0.00060273,120]
[320336581,1711307460292,-518.31921055,0.00060273,120]
[320336582,1711307460301,-2203.05,0.00060273,120]
[320336583,1711307460310,-500.0,0.00060273,120]
[320336584,1711307460319,-1000.0,0.00060273,2]
[320336585,1711307460327,-903.83,0.00060273,120]
[320336586,1711307460336,-500.0,0.00060273,120]
[320336587,1711307460345,-500.0,0.00060273,120]
[320336588,1711307460354,-500.0,0.00060273,120]
[320336589,1711307460364,-11676.8,0.00060273,120]
[320336590,1711307460373,-500.0,0.00060273,120]
[320336591,1711307460382,-500.0,0.00060273,120]
[320336592,1711307460391,-151.0,0.00060273,120]
[320336593,1711307460401,-500.2852581,0.00060273,120]
[320336594,1711307460410,-500.0,0.00060273,120]
[320336595,1711307460419,-500.0,0.00060273,120]
[320336596,1711307460429,-500.0,0.00060273,120]
[320336597,1711307460438,-500.0,0.00060273,120]
[320336598,1711307460447,-3395.06,0.00060273,120]
[320336599,1711307460456,-625.62,0.00060273,120]
[320336600,1711307460465,-500.0,0.00060273,120]
[320336601,1711307460474,-500.0,0.00060273,120]
[320336602,1711307460483,-500.0,0.00060273,120]
[320336603,1711307460493,-701.41,0.00060273,120]
[320336604,1711307460502,-500.0,0.00060273,120]
[320336605,1711307460512,-1975.99,0.00060273,120]
[320336606,1711307460523,-770.51,0.00060273,120]
[320336607,1711307460532,-1075.73,0.00060273,120]
[320336608,1711307460541,-500.0,0.00060273,120]
[320336609,1711307460551,-500.0,0.00060273,120]
[320336610,1711307460561,-1280.81,0.00060273,120]
[320336611,1711307460570,-500.0,0.00060273,120]
[320336612,1711307460579,-500.0,0.00060273,120]
[320336613,1711307460588,-500.0,0.00060273,120]
[320336614,1711307460597,-500.0,0.00060273,120]
[320336615,1711307460608,-1187.04,0.00060273,120]
[320336616,1711307460617,-500.0,0.00060273,120]
[320336617,1711307460629,-9885.5,0.00060273,120]
[320336618,1711307460638,-500.0,0.00060273,120]
[320336619,1711307460648,-500.0,0.00060273,120]
[320336620,1711307460658,-931.2,0.00060273,120]
[320336621,1711307460668,-500.0,0.00060273,120]
[320336622,1711307460737,-500.0,0.00060273,120]
[320336623,1711307460746,-500.0,0.00060273,120]
[320336624,1711307460755,-4228.18,0.00060273,120]
[320336625,1711307460765,-500.0,0.00060273,120]
[320336626,1711307460774,-2164.94,0.00060273,120]
[320336627,1711307460782,-1202.6,0.00060273,120]
[320336628,1711307460792,-500.0,0.00060273,120]
[320336629,1711307460801,-500.0,0.00060273,120]
[320336630,1711307460810,-514.65,0.00060273,120]
[320336631,1711307460819,-626.28,0.00060273,120]
[320336632,1711307460829,-500.0,0.00060273,120]
[320336633,1711307460840,-993.72,0.00060273,120]
[320336634,1711307460850,-500.0,0.00060273,120]
[320336635,1711307460859,-500.0,0.00060273,120]
[320336636,1711307460868,-500.0,0.00060273,120]
[320336637,1711307460878,-500.0,0.00060273,120]
[320336638,1711307460888,-245.3227321,0.00060273,120]
[320336639,1711307460900,-799.05,0.00060273,120]
[320336640,1711307460910,-2620.7,0.00060273,120]
[320336641,1711307460919,-11695.38,0.00060273,120]
[320336642,1711307460929,-500.0,0.00060273,120]
[320336643,1711307460939,-500.0,0.00060273,120]
[320336644,1711307460948,-918.03,0.00060273,120]
[320336645,1711307460958,-13705.24,0.00060273,90]
[320336646,1711307460967,-500.0,0.00060273,120]
[320336647,1711307460977,-500.0,0.00060273,120]
[320336648,1711307460986,-500.0,0.00060273,120]
[320336649,1711307460995,-500.0,0.00060273,120]
[320336650,1711307461005,-500.0,0.00060273,120]
[320336651,1711307461013,-2787.71,0.00060273,21]
[320336652,1711307461022,-1081.94,0.00060273,120]
[320336653,1711307461031,-1109.88,0.00060273,120]
[320336654,1711307461041,-338.05230347,0.00060273,120]
[320336743,1711308632591,-306.69969689,0.00048106,4]
[320336794,1711308638590,-340.71093202,0.00048106,4]
[320336796,1711308638602,-2472.71067171,0.00048107,4]
[320336798,1711308638613,-678.03896051,0.00048107,2]
[320336799,1711308638624,-150.0,0.00049,68]
[320336800,1711308638634,-176.919026,0.00050914,2]
[320336801,1711308638645,-166.666666,0.00051129,2]
[320336803,1711308638656,-201.9092036,0.000512,2]
[320336806,1711308638668,-6284.2818231,0.00051857,2]
[320336808,1711308638678,-166.666666,0.00052523,2]
[320336810,1711308638690,-305.13961893,0.00052796,4]
[320336812,1711308638704,-620.88059428,0.00052796,4]
[320336814,1711308638715,-155.07893571,0.00052796,4]
[320336817,1711308638726,-5260.0,0.00053,120]
[320336818,1711308638737,-166.666666,0.00053917,2]
[320336819,1711308638747,-178.47835123,0.00054692,14]
[320336820,1711308638757,-500.0,0.00054792,120]
[320336821,1711308638768,-500.0,0.00054792,120]
[320336822,1711308638778,-500.0,0.00054792,120]
[320336823,1711308638788,-105.28745859,0.00054792,120]
[320336885,1711308643683,-330.17947836,0.00054792,120]
[320336902,1711308646773,-64.53306305,0.00054792,120]
[320336903,1711308646783,-500.0,0.00054792,120]
[320336904,1711308646792,-500.0,0.00054792,120]
[320336905,1711308646801,-500.0,0.00054792,120]
[320336906,1711308646811,-500.0,0.00054792,120]
[320336907,1711308646820,-500.0,0.00054792,120]
[320336908,1711308646830,-500.0,0.00054792,120]
[320336909,1711308646839,-500.0,0.00054792,120]
[320336910,1711308646849,-500.0,0.00054792,120]
[320336911,1711308646858,-500.0,0.00054792,120]
[320336913,1711308646867,-500.0,0.00054792,120]
[320336914,1711308646876,-500.0,0.00054792,120]
[320336915,1711308646885,-500.0,0.00054792,120]
[320336916,1711308646894,-500.0,0.00054792,120]
[320336917,1711308646903,-500.0,0.00054792,120]
[320336918,1711308646912,-500.0,0.00054792,120]
[320336919,1711308646921,-334.986425,0.00054792,120]
[320336920,1711308646931,-500.0,0.00054792,120]
[320336921,1711308646940,-2551.35409246,0.00054792,2]
[320336922,1711308646950,-306.69969689,0.00054793,4]
[320336923,1711308646959,-773.18609862,0.00054793,120]
[320336924,1711308646970,-773.18609862,0.00054793,120]
[320336925,1711308646979,-773.18609862,0.00054793,120]
[320336926,1711308646988,-773.18609862,0.00054793,120]
[320336927,1711308646998,-773.18609862,0.00054793,120]
[320336928,1711308647008,-773.18609862,0.00054793,120]
[320336929,1711308647017,-773.18609862,0.00054793,120]
[320336930,1711308647026,-773.18609862,0.00054793,120]
[320336931,1711308647035,-773.18609862,0.00054793,120]
[320336932,1711308647044,-773.18609862,0.00054793,120]
[320336933,1711308647053,-773.18609862,0.00054793,120]
[320336934,1711308647062,-773.18609862,0.00054793,120]
[320336935,1711308647071,-773.18609862,0.00054793,120]
[320336936,1711308647080,-773.18609862,0.00054793,120]
[320336937,1711308647089,-773.18609862,0.00054793,120]
[320336938,1711308647097,-773.18609862,0.00054793,120]
[320336939,1711308647116,-773.18609862,0.00054793,120]
[320336940,1711308647128,-773.18609862,0.00054793,120]
[320336941,1711308647139,-773.18609862,0.00054793,120]
[320336942,1711308647149,-773.18609862,0.00054793,120]
[320336943,1711308647159,-773.18609862,0.00054793,120]
[320336944,1711308647169,-773.18609862,0.00054793,120]
[320336945,1711308647179,-773.18609862,0.00054793,120]
[320336946,1711308647188,-773.18609862,0.00054793,120]
[320336947,1711308647200,-773.18609862,0.00054793,120]
[320336948,1711308647210,-773.18609862,0.00054793,120]
[320336949,1711308647221,-773.18609862,0.00054793,120]
[320336950,1711308647231,-773.18609862,0.00054793,120]
[320336951,1711308647243,-773.18609862,0.00054793,120]
[320336952,1711308647253,-773.18609862,0.00054793,120]
[320336953,1711308647262,-773.18609862,0.00054793,120]
[320336954,1711308647272,-773.18609862,0.00054793,120]
[320336955,1711308647282,-773.18609862,0.00054793,120]
[320336956,1711308647292,-773.18609862,0.00054793,120]
[320336957,1711308647302,-684.1680583,0.00054793,120]
[320336962,1711309031218,-167.0,0.00026326,2]
[320336973,1711309349862,-56.98206981,0.00026326,2]
[320336974,1711309349883,-539.50885742,0.00027999,2]
[320336975,1711309349905,-482.50907277,0.00028,2]
[320336976,1711309418569,-471.0,0.000248,7]
[320337033,1711309489929,-333.0,0.000248,7]
[320337053,1711309554631,-221.0,0.000248,7]
[320337054,1711309621610,-1949.0,0.000248,7]
[320337065,1711309689838,-2025.0,0.000248,7]
[320337066,1711309749835,500.0,0.00026612,120]
[320337067,1711309750741,500.0,0.00026612,30]
[320337095,1711309837805,-2379.41590781,0.000248,7]
[320337097,1711309837815,-154.98450155,0.00025099,2]
[320337099,1711309837826,-150.24060006,0.000251,2]
[320337100,1711309837835,-955.46872967,0.00025142,2]
[320337102,1711309837847,-654.88409528,0.00025142,2]
[320337104,1711309837856,-2000.0,0.00025143,2]
[320337105,1711309837865,-150.24060006,0.0002582,2]
[320337106,1711309837875,-222.69549039,0.000259,2]
[320337107,1711309837884,-1619.429426,0.00027199,2]
[320337108,1711309837893,-300.0,0.000272,13]
[320337109,1711309837903,-744.28614865,0.000274,2]
[320337110,1711309837911,-300.0,0.000287,14]
[320337111,1711309837920,-300.0,0.000302,15]
[320337113,1711309837930,-152.08054767,0.00030242,7]
[320337114,1711309837939,-222.69549039,0.000309,2]
[320337115,1711309837948,-187.72335193,0.00031,2]
[320337116,1711309837957,-300.0,0.000317,15]
[320337117,1711309837966,-151.0,0.00031843,2]
[320337118,1711309837975,-300.0,0.000332,16]
[320337119,1711309837984,-300.0,0.000347,17]
[320337120,1711309837993,-150.24060006,0.00034859,7]
[320337121,1711309838002,-377.65620019,0.00034999,4]
[320337122,1711309838011,-593.28409045,0.00035,2]
[320337123,1711309838020,-222.69549039,0.000359,2]
[320337124,1711309838029,-309.899259,0.000362,18]
[320337125,1711309838038,-150.24060006,0.00036419,7]
[320337126,1711309838048,-150.24060006,0.00036853,7]
[320337127,1711309838058,-150.24060006,0.00037511,7]
[320337128,1711309838067,-1000.000001,0.00038,4]
[320337129,1711309838076,-385.36905955,0.0004,2]
[320337130,1711309838086,-245.0,0.000405,2]
[320337131,1711309838095,-8677.30409915,0.000405,2]
[320337132,1711309838107,-2487.35830798,0.000405,2]
[320337174,1711309840011,-318.08983413,0.00030199,7]
[320337176,1711309840021,-11734.86226952,0.000405,2]
[320337878,1711310024333,361.98494462,0.00026612,120]
[320337879,1711310048527,772.06922783,0.00026615,30]
[320337881,1711310073889,444.32434534,0.00026615,30]
[320337882,1711310074516,785.30008157,0.00026615,120]
[320337885,1711310076457,996.01043992,0.00026615,30]
[320337886,1711310077312,2000.0,0.00026615,120]
[320337889,1711310078038,490.23078341,0.00026615,120]
[320337890,1711310136515,-9563.08850997,0.00021,2]
[320337891,1711310136536,-166.666666,0.00026245,2]
[320337892,1711310136558,-281.08411472,0.00026614,2]
[320337893,1711310136578,-1610.35282495,0.00026614,2]
[320337894,1711310136600,-166.666666,0.0002696,2]
[320337895,1711310136622,-10122.54870002,0.00027397,3]
[320337896,1711310136642,-1967.61186454,0.00027397,2]
[320337897,1711310136663,-796.1929447,0.00027397,2]
[320337898,1711310136684,-225.7877091,0.00027397,2]
[320337900,1711310201766,-281.08411472,0.00026614,2]
[320337901,1711310201787,-1584.07621582,0.00026614,2]
[320337902,1711310201810,-570.4052356,0.00027397,2]
[320337903,1711310201934,-796.1929447,0.00027397,2]
[320337904,1711310201957,-796.1929447,0.00027397,2]
[320337905,1711310201979,-796.1929447,0.00027397,2]
[320337906,1711310201999,-796.1929447,0.00027397,2]
[320337907,1711310202021,-796.1929447,0.00027397,2]
[320337908,1711310202047,-796.1929447,0.00027397,2]
[320337909,1711310202068,-796.1929447,0.00027397,2]
[320337910,1711310202088,-796.1929447,0.00027397,2]
[320337911,1711310202108,-796.1929447,0.00027397,2]
[320337912,1711310202129,-796.1929447,0.00027397,2]
[320337913,1711310202148,-796.1929447,0.00027397,2]
[320337914,1711310202168,-796.1929447,0.00027397,2]
[320337915,1711310202188,-796.1929447,0.00027397,2]
[320337916,1711310202208,-796.1929447,0.00027397,2]
[320337917,1711310202229,-796.1929447,0.00027397,2]
[320337918,1711310202249,-796.1929447,0.00027397,2]
[320337919,1711310202269,-796.1929447,0.00027397,2]
[320337920,1711310202290,-796.1929447,0.00027397,2]
[320337921,1711310202311,-796.1929447,0.00027397,2]
[320337922,1711310202330,-796.1929447,0.00027397,2]
[320337923,1711310202350,-796.1929447,0.00027397,2]
[320337924,1711310202371,-796.1929447,0.00027397,2]
[320337925,1711310202391,-796.1929447,0.00027397,2]
[320337926,1711310202410,-796.1929447,0.00027397,2]
[320337927,1711310202430,-796.1929447,0.00027397,2]
[320337928,1711310202451,-796.1929447,0.00027397,2]
[320337929,1711310202471,-796.1929447,0.00027397,2]
[320337930,1711310202492,-796.1929447,0.00027397,2]
[320337931,1711310202513,-796.1929447,0.00027397,2]
[320337932,1711310202534,-796.1929447,0.00027397,2]
[320337933,1711310202554,-796.1929447,0.00027397,2]
[320337934,1711310202574,-796.1929447,0.00027397,2]
[320337935,1711310202596,-796.1929447,0.00027397,2]
[320337936,1711310202616,-796.1929447,0.00027397,2]
[320337937,1711310202637,-796.1929447,0.00027397,2]
[320337938,1711310202658,-796.1929447,0.00027397,2]
[320337939,1711310202678,-796.1929447,0.00027397,2]
[320337940,1711310202698,-796.1929447,0.00027397,2]
[320337941,1711310202718,-796.1929447,0.00027397,2]
[320337942,1711310202738,-796.1929447,0.00027397,2]
[320337943,1711310202760,-796.1929447,0.00027397,2]
[320337944,1711310202779,-796.1929447,0.00027397,2]
[320337945,1711310202800,-796.1929447,0.00027397,2]
[320337946,1711310202821,-796.1929447,0.00027397,2]
[320337947,1711310202841,-796.1929447,0.00027397,2]
[320337948,1711310202866,-796.1929447,0.00027397,2]
[320337949,1711310202888,-796.1929447,0.00027397,2]
[320337950,1711310202909,-796.1929447,0.00027397,2]
[320337951,1711310202931,-796.1929447,0.00027397,2]
[320337952,1711310202953,-796.1929447,0.00027397,2]
[320337953,1711310202974,-796.1929447,0.00027397,2]
[320337954,1711310202994,-796.1929447,0.00027397,2]
[320337955,1711310203015,-796.1929447,0.00027397,2]
[320337956,1711310203036,-796.1929447,0.00027397,2]
[320337957,1711310203057,-796.1929447,0.00027397,2]
[320337958,1711310203077,-796.1929447,0.00027397,2]
[320337959,1711310203098,-796.1929447,0.00027397,2]
[320337960,1711310203118,-796.1929447,0.00027397,2]
[320337961,1711310203138,-796.1929447,0.00027397,2]
[320337962,1711310203159,-796.1929447,0.00027397,2]
[320337963,1711310203181,-796.1929447,0.00027397,2]
[320337964,1711310203202,-796.1929447,0.00027397,2]
[320337965,1711310203227,-796.1929447,0.00027397,2]
[320337966,1711310203248,-1392.94648257,0.00027397,2]
[320337967,1711310203269,-1392.94648257,0.00027397,2]
[320337968,1711310203290,-1392.94648257,0.00027397,2]
[320337969,1711310203311,-1392.94648257,0.00027397,2]
[320337970,1711310203331,-1392.94648257,0.00027397,2]
[320337971,1711310203352,-1392.94648257,0.00027397,2]
[320337972,1711310203373,-1392.94648257,0.00027397,2]
[320337973,1711310203395,-1392.94648257,0.00027397,2]
[320337974,1711310203416,-1392.94648257,0.00027397,2]
[320337975,1711310203437,-1392.94648257,0.00027397,2]
[320337976,1711310203458,-1392.94648257,0.00027397,2]
[320337977,1711310203479,-1392.94648257,0.00027397,2]
[320337978,1711310203499,-1392.94648257,0.00027397,2]
[320337979,1711310203520,-1392.94648257,0.00027397,2]
[320337980,1711310203540,-1392.94648257,0.00027397,2]
[320337981,1711310203649,-1081.08167921,0.00027397,2]
[320337982,1711310548784,176.25,0.00026615,30]
[320337983,1711310663129,500.0,0.0002661,120]
[320337993,1711311032113,-166.666666,0.00022124,2]
[320337994,1711311032127,-166.666666,0.00022728,2]
[320337995,1711311032139,-156.6666675,0.00023331,2]
[320338132,1711311043168,-9.9999985,0.00023331,2]
[320338133,1711311043178,-1573.23423762,0.00023468,2]
[320338134,1711311043188,-154.9690062,0.00023468,2]
[320338135,1711311043197,-281.08411472,0.00023469,2]
[320338136,1711311043208,-1057.54959793,0.0002347,2]
[320338164,1711311046093,-552.80322702,0.0002347,2]
[320338166,1711311046102,-1478.10164678,0.00023471,2]
[320338168,1711311046111,-685.75009172,0.00023471,2]
[320338170,1711311046121,-11489.5658408,0.0002348,2]
[320338171,1711311046131,-5116.79698681,0.00023636,2]
[320338192,1711311047280,-9297.9935687,0.00023636,2]
[320338193,1711311124295,-156.39858452,0.00022446,2]
[320338194,1711311124316,-673.79896193,0.00022446,2]
[320338195,1711311124336,-298.10176016,0.00022447,2]
[320338196,1711311124356,-239.42982429,0.00022447,2]
[320338197,1711311124377,-3443.12849161,0.00022447,2]
[320338198,1711311124397,-816.34141016,0.00022447,2]
[320338199,1711311124417,-192.05195786,0.00022448,2]
[320338200,1711311124437,-302.52792033,0.00022448,2]
[320338201,1711311124456,-210.28133862,0.00022448,2]
[320338202,1711311124476,-275.66095293,0.00022448,2]
[320338203,1711311124496,-322.75843539,0.00022449,2]
[320338204,1711311124516,-205.23034575,0.00022449,2]
[320338205,1711311124536,-180.18452548,0.0002245,2]
[320338206,1711311124555,-187.26188436,0.00022451,2]
[320338207,1711311124575,-685.75009172,0.00023467,2]
[320338208,1711311124595,-1478.10164678,0.00023633,2]
[320338209,1711311124616,-154.9999969,0.00023634,2]
[320338210,1711311124637,-1308.00001,0.00023634,2]
[320338211,1711311124657,-1573.23423762,0.00023634,2]
[320338212,1711311124677,-1610.35282495,0.00023634,2]
[320338213,1711311124697,-309.84508056,0.00023635,2]
[320338214,1711311124718,-10485.20944449,0.00023636,2]
[320338215,1711311124738,-214.4949099,0.00023833,2]
[320338216,1711311124759,-166.666666,0.00023934,2]
[320338217,1711311124779,-174.18869769,0.00024,2]
[320338218,1711311202854,-391.0,0.000239,2]
[320338219,1711311267540,-154.9690062,0.00023897,2]
[320338220,1711311267561,-877.29562893,0.00023898,2]
[320338221,1711311267582,-66.73536487,0.000239,2]
[320338222,1711311336115,-154.9690062,0.00023895,2]
[320338223,1711311336137,-816.34141016,0.00023896,2]
[320338224,1711311336160,-275.66095293,0.00023897,2]
[320338225,1711311336182,-683.82278361,0.00023898,2]
[320338226,1711311336203,-539.50885742,0.00023899,2]
[320338227,1711311336224,-36.70602196,0.000239,2]
[320338228,1711311336244,-677.99096772,0.000239,2]
[320338230,1711311400570,-285.68536284,0.00021536,2]
[320338231,1711311400592,-298.10176016,0.0002349,2]
[320338232,1711311400616,-212.212877,0.00023491,2]
[320338233,1711311463438,-1573.23423762,0.00021535,2]
[320338234,1711311463463,-178.311835,0.00023217,2]
[320338235,1711311463487,-345.96153,0.00023287,2]
[320338236,1711311463510,-281.08411472,0.0002349,2]
[320338237,1711311463532,-117.4079286,0.00023491,2]
[320338238,1711311463552,-443.84615902,0.00023491,2]
[320338239,1711311528524,137.15419504,0.00023603,2]
[320338240,1711311529929,-143.92991968,0.00023603,2]
[320338241,1711311540672,77.07008032,0.00023603,2]
[320338242,1711311594542,-166.666666,0.00023155,2]
[320338243,1711311594571,-77.89892588,0.00023603,2]
[320338244,1711311594600,-161.4575979,0.00023604,2]
[320338245,1711311594627,-64.97681022,0.00023787,2]
[320338248,1711311661572,-281.08411472,0.00023786,2]
[320338249,1711311661595,-101.68985578,0.00023787,2]
[320338250,1711311661616,-178.47835122,0.00024318,2]
[320338251,1711311661637,-192.89435476,0.00024341,2]
[320338252,1711311661661,-1621.82996488,0.00024341,2]
[320338253,1711311661681,-200.21174099,0.00024341,2]
[320338254,1711311661702,-683.2104041,0.00024342,2]
[320338255,1711311661727,-274.95069555,0.00024342,2]
[320338256,1711311661747,-154.9690062,0.00024342,2]
[320338257,1711311661767,-294.68032353,0.00024342,2]
[320338258,1711311661788,-24900.0,0.00024343,2]
[320338259,1711311661810,-166.666666,0.00024418,2]
[320338260,1711311661831,-2603.55769832,0.00024555,2]
[320338261,1711311661855,-284.7424853,0.00024658,2]
[320338262,1711311661877,-333.0,0.000248,7]
[320338263,1711311661899,-2000.0,0.000249,2]
[320338264,1711311661921,-5129.93886882,0.00025,2]
[320338265,1711311661941,-166.666666,0.00025049,2]
[320338266,1711311661963,-2000.0,0.00025142,2]
[320338267,1711311661984,-1619.42880383,0.00025385,2]
[320338287,1711312232308,-281.08411472,0.00022899,2]
[320338288,1711312232320,-190.45690856,0.000229,2]
[320338289,1711312232332,-166.666666,0.0002445,2]
[320338290,1711312232346,-692.0,0.000248,7]
[320338292,1711312232359,-176.919026,0.00024925,2]
[320338295,1711312232372,-172.980765,0.00024995,2]
[320338298,1711312232384,-166.666666,0.00025117,2]
[320338301,1711312232398,-2000.0,0.00025142,2]
[320338303,1711312232409,-18231.11984794,0.00025385,2]
[320338305,1711312232422,-178.47835122,0.00025527,2]
[320338307,1711312232436,-3576.185773,0.00025627,2]
[320338309,1711312232447,-166.666666,0.00025783,2]
[320338311,1711312232459,-166.666666,0.0002645,2]
[320338314,1711312232472,-755.23449003,0.00026508,2]
[320338316,1711312232485,-205.23034575,0.00026606,2]
[320338318,1711312232496,-205.02928587,0.00026606,2]
[320338320,1711312232509,-180.24387413,0.00026606,2]
[320338323,1711312232521,-326.83546449,0.00026606,2]
[320338325,1711312232532,-239.29822108,0.00026606,2]
[320338327,1711312232545,-255.75294514,0.00026606,2]
[320338329,1711312232558,-210.16491797,0.00026606,2]
[320338332,1711312232568,-322.61827325,0.00026606,2]
[320338333,1711312232578,-184.02969221,0.00026606,2]
[320338349,1711312232718,-156.00342671,0.00026606,2]
[320338351,1711312232732,-1057.54959793,0.00026606,2]
[320338353,1711312232742,-174.999411,0.00026606,2]
[320338355,1711312232751,-1961.96826851,0.00026606,2]
[320338357,1711312232761,-404.89614019,0.00026606,2]
[320338359,1711312232771,-187.57184153,0.00026606,2]
[320338361,1711312232780,-880.26994726,0.00026606,2]
[320338363,1711312232789,-166.16217332,0.00026606,2]
[320338365,1711312232798,-3227.16699608,0.00026607,2]
[320338367,1711312232808,-3506.11948002,0.00026608,2]
[320338369,1711312232817,-157.59622062,0.00026608,2]
[320338371,1711312232827,-481.54389933,0.00026608,2]
[320338373,1711312232836,-354.65998098,0.00026608,2]
[320338375,1711312232845,-1899.72787318,0.00026608,2]
[320338377,1711312232855,-3165.27704134,0.00026608,2]
[320338379,1711312232864,-1537.7459813,0.00026608,2]
[320338381,1711312232873,-304.78785734,0.00026608,2]
[320338383,1711312232882,-309.87609912,0.00026608,2]
[320338385,1711312232891,-603.12853459,0.00026608,2]